bitfinex/quotes_ETHUSD_20260313
["timestamp","ask_amount","ask_price","bid_price","bid_amount"]
[1773423803247,1.18669008,2106.7,2105.8,3.20400697]
[1773423805257,0.001,2106.8,2105.9,1.18714088]
[1773423805971,0.001,2106.8,2106.0,3.20400697]
[1773423807360,0.001,2106.8,2106.1,1.18702815]
[1773423807556,0.001,2106.8,2106.2,1.56]
[1773423808066,3.0824825,2106.4,2105.1,3.20400697]
[1773423808272,3.0824825,2106.4,2105.2,1.56]
[1773423809274,1.18691544,2106.3,2105.2,1.56]
[1773423809472,4.26939794,2106.3,2105.2,1.56]
[1773423809774,4.26939794,2106.3,2105.1,3.20400697]
[1773423809775,3.0824825,2106.2,2105.1,3.20400697]
[1773423810091,3.0824825,2106.2,2105.1,1.56]
[1773423810572,3.0824825,2106.2,2105.0,0.0011]
[1773423810794,3.0824825,2106.2,2105.2,1.559]
[1773423811148,3.0824825,2106.2,2105.0,0.0011]
[1773423811345,3.0824825,2106.2,2105.1,1.559]
[1773423811892,1.18702815,2106.1,2105.1,1.559]
[1773423812180,4.26951065,2106.1,2105.1,4.76300697]
[1773423812551,3.0824825,2106.0,2105.0,0.0011]
[1773423812751,3.0824825,2106.0,2105.1,1.559]
[1773423813360,3.0824825,2106.0,2105.0,0.0011]
[1773423813565,3.0824825,2106.0,2105.1,1.559]
[1773423813986,1.18714088,2105.9,2105.1,2.74658674]
[1773423814284,1.18714088,2105.9,2105.2,1.558]
[1773423814963,4.26962338,2105.9,2105.2,1.558]
[1773423815285,1.18714088,2105.9,2105.2,4.76200697]
[1773423816192,1.85240374,2106.2,2105.2,1.558]
[1773423816489,1.85240374,2106.2,2105.0,0.0011]
[1773423816490,3.0824825,2106.1,2105.0,0.0011]
[1773423818489,3.0824825,2105.9,2105.0,0.0011]
[1773423819887,1.85240374,2105.9,2105.0,0.0011]
[1773423820076,3.0824825,2105.8,2104.8,0.0011]
[1773423820587,3.0824825,2105.6,2104.8,0.0011]
[1773423820785,3.0824825,2105.6,2105.2,0.0011]
[1773423821180,3.0824825,2105.6,2105.0,0.0011]
[1773423822665,1.18736642,2105.5,2105.0,0.0011]
[1773423823389,4.26984892,2105.5,2105.0,0.0011]
[1773423823569,3.0824825,2105.4,2105.0,0.0011]
[1773423824569,1.18747921,2105.3,2105.0,0.0011]
[1773423824769,3.0824825,2105.2,2104.8,0.0011]
[1773423825164,3.0824825,2105.2,2104.3,0.0011]
[1773423826588,2.97344116,2105.0,2104.3,0.0011]
[1773423826972,1.18759203,2105.1,2104.3,0.0011]
[1773423827490,1.18759203,2105.1,2104.3,2.97191186]
[1773423828767,4.75036815,2105.2,2104.4,1.547]
[1773423829075,4.75036815,2105.2,2104.3,2.97191186]
[1773423829372,4.75036815,2105.2,2104.4,1.546]
[1773423829873,2.97344116,2105.1,2104.3,0.0011]
[1773423830087,2.97344116,2105.0,2104.1,0.0011]
[1773423830264,2.97344116,2105.0,2104.1,4.16004399]
[1773423830459,4.75036815,2105.2,2104.2,2.97081186]
[1773423830770,4.75036815,2105.2,2104.2,4.15890088]
[1773423830971,4.75036815,2105.2,2104.2,2.97081186]
[1773423831167,4.75036815,2105.2,2104.3,1.53]
[1773423831372,4.75036815,2105.2,2104.4,3.01803819]
[1773423831568,3.00556007,2105.1,2104.2,1.531]
[1773423831790,3.00556007,2105.1,2104.1,0.0011]
[1773423832363,4.75036815,2105.2,2103.0,1.567]
[1773423832364,4.85726999,2104.2,2103.1,3.01803819]
[1773423832593,3.00556007,2104.1,2103.1,3.06668704]
[1773423832794,3.00556007,2104.4,2103.2,3.01803819]
[1773423833366,3.00556007,2104.4,2103.3,0.0011]
[1773423833569,3.00556007,2104.2,2103.3,0.0011]
[1773423834112,5.00556007,2104.1,2102.6,0.1345847]
[1773423834270,1.85170992,2104.2,2102.7,0.0011]
[1773423834271,3.00556007,2103.6,2102.7,0.0011]
[1773423834572,2.34938778,2103.9,2102.7,0.0011]
[1773423834898,3.00556007,2103.7,2102.7,0.0011]
[1773423836499,1.18832588,2103.8,2102.7,3.01913819]
[1773423836791,1.18821292,2104.0,2102.9,3.01803819]
[1773423836995,1.18821292,2104.0,2103.0,0.0011]
[1773423837170,3.00556007,2103.9,2103.0,0.0011]
[1773423838462,1.18821292,2104.0,2103.0,3.01913819]
[1773423838667,1.42440865,2104.0,2103.0,4.2078596]
[1773423839098,1.42440865,2104.0,2103.0,4.20788812]
[1773423839867,1.42440865,2104.0,2103.0,4.53713819]
[1773423840198,1.18813353,2104.2,2103.1,3.01803819]
[1773423840793,4.75105911,2104.8,2103.3,3.01803819]
[1773423840794,4.19343425,2104.6,2103.3,3.01803819]
[1773423840996,4.19343425,2104.6,2103.4,0.0011]
[1773423841166,1.18787418,2104.6,2103.4,3.01913819]
[1773423842899,0.2326735,2104.7,2103.6,3.01803819]
[1773423843205,1.18774844,2104.9,2103.8,3.01803819]
[1773423843772,1.18759203,2105.1,2103.9,3.01913819]
[1773423844177,1.18759203,2105.1,2104.0,3.01803819]
[1773423844723,1.18757828,2105.2,2104.2,3.01803819]
[1773423844875,1.18736642,2105.5,2104.4,3.01803819]
[1773423845228,1.42913907,2105.5,2104.5,1.528]
[1773423845369,1.42913907,2105.5,2104.4,3.01803819]
[1773423845573,4.43469914,2105.5,2104.5,0.0011]
[1773423846204,1.42913907,2105.5,2104.6,3.01803819]
[1773423846504,1.18736642,2105.5,2104.6,3.01803819]
[1773423846711,1.18714088,2106.0,2104.8,3.01803819]
[1773423846878,4.9914817,2106.0,2105.0,3.01803819]
[1773423847208,3.00556007,2106.5,2105.2,3.01803819]
[1773423847702,0.23793239,2106.5,2105.5,3.01803819]
[1773423847885,1.18674641,2106.6,2105.5,3.01803819]
[1773423848086,1.18672433,2106.7,2105.8,3.01803819]
[1773423848283,1.18672433,2106.7,2105.7,1.85170992]
[1773423848284,0.001,2106.8,2106.0,3.01803819]
[1773423848483,1.18623962,2107.5,2106.2,3.01803819]
[1773423848803,1.18623962,2107.5,2106.3,0.0011]
[1773423849026,1.18623962,2107.5,2106.3,3.01913819]
[1773423851209,3.00556007,2107.4,2106.3,0.0011]
[1773423852425,3.00556007,2107.4,2105.9,5.74016855]
[1773423852426,3.00556007,2107.1,2105.9,4.55303819]
[1773423852803,3.00556007,2107.4,2106.0,3.01913819]
[1773423853140,3.00556007,2106.9,2105.5,3.01803819]
[1773423853427,1.18652112,2107.0,2105.7,3.01803819]
[1773423853724,1.18652112,2107.0,2105.9,3.01803819]
[1773423855010,4.74608448,2107.2,2106.0,4.20512271]
[1773423856201,4.74608448,2107.2,2106.1,3.01803819]
[1773423856520,4.74608448,2107.2,2106.1,4.55703819]
[1773423856825,4.74608448,2107.2,2106.2,3.01803819]
[1773423857223,4.74557205,2107.5,2106.3,1.18691544]
[1773423857426,4.74557205,2107.5,2106.3,4.20495363]
[1773423857750,7.75113212,2107.5,2106.3,4.20495363]
[1773423858033,3.00556007,2107.3,2106.1,1.539]
[1773423858699,3.00556007,2107.3,2106.1,2.72601748]
[1773423858919,3.00556007,2107.3,2106.1,1.539]
[1773423859121,3.00556007,2107.3,2105.9,5.74417115]
[1773423859326,9.18796857,2107.2,2105.9,5.74417115]
[1773423859635,4.19196857,2107.2,2105.9,5.74417115]
[1773423859942,4.19196857,2107.2,2106.0,0.04748338]
[1773423860152,1.85170992,2107.1,2106.0,0.04748338]
[1773423860431,1.85170992,2107.1,2105.3,6.60154092]
[1773423860432,3.00556007,2107.0,2105.5,3.01803819]
[1773423860602,3.00556007,2107.0,2105.7,4.55703819]
[1773423861025,2.93739582,2106.9,2105.7,3.01803819]
[1773423861534,4.12402957,2106.8,2105.7,3.01803819]
[1773423861741,4.12402957,2106.8,2105.7,4.20529117]
[1773423861941,4.12402957,2106.8,2105.7,3.01803819]
[1773423862712,4.12402957,2106.8,2105.7,4.20528115]
[1773423863314,4.12402957,2106.8,2105.8,0.02864768]
[1773423863613,1.18663375,2106.8,2105.8,2.97849004]
[1773423863834,1.18663375,2106.8,2105.8,2.93100215]
[1773423864436,1.18663375,2106.8,2105.8,2.97849004]
[1773423864636,1.18663375,2106.8,2105.8,2.93100215]
[1773423864637,1.41990573,2106.8,2105.8,2.93100215]
[1773423865453,1.41990573,2106.8,2106.0,1.18708452]
[1773423865756,2.98487709,2106.7,2105.5,2.93100215]
[1773423865960,1.41990573,2106.8,2105.6,2.97849455]
[1773423866155,1.46739422,2106.8,2105.9,2.93100215]
[1773423866452,1.1866388,2106.8,2106.1,2.93100215]
[1773423866816,1.1866388,2106.8,2106.2,0.04747887]
[1773423867529,1.1866388,2106.8,2106.2,1.18691897]
[1773423867946,0.04748127,2106.7,2106.1,5.65500187]
[1773423868125,1.1866388,2106.8,2106.1,5.65500187]
[1773423868633,1.23406235,2106.9,2106.2,2.97337958]
[1773423868953,1.18658108,2106.9,2106.2,2.97337958]
[1773423869265,4.74721791,2107.0,2106.4,2.93100215]
[1773423869266,0.001,2107.0,2106.4,2.93100215]
[1773423869627,0.001,2107.0,2106.5,1.18680275]
[1773423870235,0.001,2107.0,2106.4,4.11785357]
[1773423870437,0.001,2107.0,2106.4,5.70132793]
[1773423871049,0.04748127,2107.4,2106.5,2.93100215]
[1773423871429,0.28075799,2107.5,2106.5,2.93100215]
[1773423871649,1.1862959,2107.4,2106.6,4.11774856]
[1773423871828,0.04748127,2107.3,2106.6,4.11774856]
[1773423872852,7.43117399,2107.9,2106.7,2.93100215]
[1773423872853,1.18607078,2107.8,2106.7,2.93100215]
[1773423873028,0.04748127,2107.7,2106.7,2.93100215]
[1773423873748,1.18612718,2107.7,2107.0,2.93100215]
[1773423873917,1.18612718,2107.7,2107.1,1.534]
[1773423874118,1.18612718,2107.7,2107.1,4.46500215]
[1773423874119,1.18612821,2107.7,2107.1,4.46500215]
[1773423874322,1.23360948,2107.7,2107.1,4.46500215]
[1773423875120,0.04748127,2107.7,2107.1,4.46500215]
[1773423875546,1.47187735,2107.8,2107.1,4.46500215]
[1773423875858,1.47187735,2107.8,2107.1,5.65142303]
[1773423876222,0.28576492,2107.8,2107.2,2.93100215]
[1773423876460,1.23357606,2107.8,2107.2,2.93100215]
[1773423877022,1.23357606,2107.8,2107.2,1.534]
[1773423877544,0.04748127,2107.9,2107.2,4.46500215]
[1773423877722,1.18607078,2107.8,2107.3,1.1863522]
[1773423878056,0.04748127,2107.8,2107.3,2.93100215]
[1773423878263,0.04748127,2107.9,2107.3,2.93100215]
[1773423878825,1.23445002,2108.0,2107.3,2.93100215]
[1773423879020,0.001,2108.0,2107.3,2.93100215]
[1773423879536,1.18578949,2108.3,2107.3,2.93100215]
[1773423879730,1.18578949,2108.3,2107.5,2.93100215]
[1773423880153,0.28604034,2108.4,2107.5,2.93100215]
[1773423880360,1.18562079,2108.6,2107.6,2.93100215]
[1773423880653,1.23304845,2108.7,2107.6,2.93100215]
[1773423882059,2.93739582,2108.6,2107.4,1.1862959]
[1773423882357,0.04748127,2108.5,2107.4,5.65329805]
[1773423882856,0.04748127,2108.5,2107.5,2.93100215]
[1773423883023,1.85170992,2107.7,2106.5,2.93100215]
[1773423883226,1.85170992,2107.7,2106.0,0.0011]
[1773423883227,2.98487709,2107.6,2106.2,2.93210215]
[1773423883528,2.98487709,2107.6,2106.4,2.93100215]
[1773423883740,2.98487709,2107.6,2106.3,1.536]
[1773423883956,2.98487709,2107.6,2106.2,1.18803754]
[1773423884159,2.93739582,2107.4,2106.2,1.18803754]
[1773423884457,2.93739582,2107.4,2106.2,0.0011]
[1773423886060,2.95296542,2107.2,2106.2,0.0011]
[1773423886566,2.95296542,2107.2,2106.2,1.188066]
[1773423886767,1.1863522,2107.3,2106.3,0.04747661]
[1773423886961,1.18632104,2107.4,2106.3,2.851519]
[1773423887372,1.18632104,2107.4,2106.3,2.80404239]
[1773423887740,1.18632104,2107.4,2106.4,2.80514239]
[1773423887942,0.001,2107.3,2106.4,0.0011]
[1773423888141,0.001,2107.3,2106.4,2.85261675]
[1773423888944,0.001,2107.3,2106.6,2.80404239]
[1773423889147,0.001,2107.3,2106.8,2.80404239]
[1773423889475,0.001,2107.3,2106.9,0.04746309]
[1773423890367,1.18595825,2108.0,2106.9,4.03806425]
[1773423890552,2.95296542,2107.9,2106.9,4.0380816]
[1773423890953,0.04748127,2107.8,2106.9,4.0380816]
[1773423891259,0.04748127,2107.8,2107.0,2.94558259]
[1773423891562,1.18595825,2108.0,2107.1,2.99304118]
[1773423891563,0.04748127,2107.9,2107.1,2.99304118]
[1773423891776,0.04748127,2107.9,2107.2,0.04745634]
[1773423891953,0.04748127,2107.9,2107.2,2.94558259]
[1773423892144,0.04748127,2107.9,2107.3,0.04745408]
[1773423892340,1.18607078,2107.8,2107.3,2.94558259]
[1773423892568,1.18607078,2107.8,2107.3,2.72334541]
[1773423894069,1.18603626,2107.9,2107.3,2.72334541]
[1773423894770,1.18603626,2107.9,2106.1,2.94668259]
[1773423894771,2.88549994,2107.3,2106.1,2.94668259]
[1773423895153,2.88549994,2107.3,2106.1,1.18812506]
[1773423895353,2.88549994,2107.3,2106.1,0.0011]
[1773423895882,2.88549994,2107.3,2106.2,0.02483252]
[1773423896080,2.88549994,2107.3,2106.2,0.0011]
[1773423896286,0.05932042,2107.2,2106.2,0.02483252]
[1773423896585,4.07196474,2107.1,2106.2,0.0011]
[1773423896980,1.1864648,2107.1,2106.2,1.18805814]
[1773423897186,1.24576902,2107.2,2106.3,2.96931849]
[1773423898586,1.24576902,2107.2,2106.3,4.13245006]
[1773423899476,1.24576902,2107.2,2106.3,1.18690875]
[1773423900182,4.31116373,2107.5,2106.5,2.94558259]
[1773423900385,0.03561493,2107.4,2106.5,2.94558259]
[1773423900884,1.1863522,2107.3,2106.6,1.18674641]
[1773423901083,4.78102374,2107.4,2106.6,4.132329]
[1773423901084,0.03561493,2107.4,2106.6,4.132329]
[1773423901262,1.22157318,2108.0,2106.8,2.94558259]
[1773423901466,2.88549994,2107.9,2106.9,1.536]
[1773423901680,0.03561493,2107.8,2106.9,4.48158259]
[1773423901881,1.18595825,2108.0,2106.7,1.84829553]
[1773423901882,1.46298796,2108.0,2107.0,2.99304343]
[1773423902088,0.03561493,2108.0,2107.2,2.94558259]
[1773423902290,1.22155985,2108.1,2107.3,1.535]
[1773423902791,0.001,2107.6,2106.8,2.94558259]
[1773423902987,4.9782662,2108.4,2106.8,2.94558259]
[1773423902988,1.18567702,2108.5,2107.6,2.94558259]
[1773423903160,0.03561493,2108.4,2107.7,1.535]
[1773423903356,1.4991675,2108.9,2108.0,2.94558259]
[1773423903561,0.03561493,2108.8,2107.7,4.48058259]
[1773423903788,0.03561493,2108.8,2107.9,2.94558259]
[1773423903962,2.92111487,2108.8,2107.4,2.94558259]
[1773423904158,0.03561493,2108.8,2107.7,2.94558259]
[1773423904365,0.03561493,2108.8,2107.9,2.94558259]
[1773423904900,1.18555159,2108.8,2108.0,2.94558259]
[1773423905071,1.18555159,2108.8,2108.1,2.94558259]
[1773423905263,4.7767713,2109.2,2108.1,2.94558259]
[1773423905464,1.18533971,2109.1,2108.1,2.94558259]
[1773423905770,2.92111487,2109.0,2107.9,1.536]
[1773423905977,2.92111487,2109.0,2107.5,1.536]
[1773423906468,2.92111487,2109.0,2107.6,1.537]
[1773423906787,2.92111487,2109.0,2107.7,1.537]
[1773423907180,2.88549994,2108.8,2107.4,2.94558259]
[1773423907385,2.88549994,2108.6,2107.4,2.94558259]
[1773423907579,2.88549994,2108.4,2107.1,2.94558259]
[1773423907784,2.92111487,2108.3,2107.1,2.94558259]
[1773423909293,1.18584574,2108.2,2107.1,2.94558259]
[1773423909494,0.03561493,2108.1,2107.1,4.48358259]
[1773423909789,0.03561493,2108.1,2107.2,2.99303893]
[1773423910366,0.03561493,2108.1,2107.2,2.94558259]
[1773423910567,2.88549994,2108.0,2106.5,2.94558259]
[1773423910766,2.88549994,2107.7,2106.6,1.539]
[1773423910994,1.84829553,2107.8,2106.5,2.94558259]
[1773423910995,2.92111487,2107.6,2106.5,2.94558259]
[1773423911198,2.92111487,2107.6,2106.6,1.539]
[1773423911395,1.18623962,2107.5,2106.5,2.94558259]
[1773423911582,4.07173956,2107.5,2106.6,0.04744706]
[1773423912099,4.07173956,2107.5,2106.5,2.94558259]
[1773423912477,2.88549994,2107.4,2106.4,0.0011]
[1773423912677,2.88549994,2107.4,2106.4,1.5401]
[1773423912875,1.18623962,2107.5,2106.5,2.94558259]
[1773423913075,1.18623962,2107.5,2106.6,2.99302965]
[1773423913285,1.18623962,2107.5,2106.7,1.54]
[1773423913496,4.74495848,2107.6,2106.8,0.04744256]
[1773423913701,2.88549994,2107.5,2106.4,0.0011]
[1773423913897,2.88549994,2107.5,2106.4,2.77540403]
[1773423914807,1.22179826,2107.7,2106.5,22.89660259]
[1773423914808,1.22178217,2107.7,2106.5,22.89660259]
[1773423914992,1.22178217,2107.7,2106.7,2.94558259]
[1773423915301,0.001,2107.6,2106.8,1.58846535]
[1773423915602,0.001,2107.6,2106.9,1.18657743]
[1773423915898,0.001,2107.6,2106.9,4.13216002]
[1773423917007,0.001,2107.6,2106.9,2.94558259]
[1773423917183,0.001,2107.6,2106.8,2.72759705]
[1773423917382,0.001,2107.6,2106.9,2.94558259]
[1773423917596,0.001,2107.6,2107.0,1.18652112]
[1773423918307,0.03661493,2107.6,2107.0,1.18652112]
[1773423918684,0.001,2107.6,2107.0,1.18652112]
[1773423918887,1.18578949,2108.3,2107.1,2.99304118]
[1773423919196,0.03561493,2108.2,2107.3,2.94558259]
[1773423919507,0.03561493,2108.2,2107.4,1.545]
[1773423919687,1.18590199,2108.1,2107.4,2.73127629]
[1773423919889,0.03561493,2108.0,2107.4,2.7312946]
[1773423920714,0.03561493,2108.0,2105.9,0.0011]
[1773423920715,2.61337322,2107.8,2105.9,0.0011]
[1773423920884,2.68649942,2106.5,2105.0,2.72019738]
[1773423921083,2.68649942,2106.5,2105.1,2.76770106]
[1773423921084,2.0,2106.1,2105.1,2.76770106]
[1773423921404,2.0,2106.4,2105.3,12.26762]
[1773423921604,2.0,2106.4,2105.4,0.04749691]
[1773423921804,2.0,2106.2,2105.1,3.90776045]
[1773423922298,2.0,2106.1,2105.1,3.90776045]
[1773423922824,2.0,2106.2,2105.1,3.90996045]
[1773423923127,2.68649942,2107.0,2105.3,2.72019738]
[1773423923282,2.68649942,2107.4,2105.9,2.72019738]
[1773423923599,0.03561493,2107.3,2106.2,5.995]
[1773423923803,0.03561493,2107.3,2106.4,3.90705647]
[1773423924127,1.18622013,2107.6,2106.5,0.0022]
[1773423924326,0.03561493,2107.5,2106.6,1.543]
[1773423924629,3.87240141,2108.2,2106.6,1.543]
[1773423924810,3.87240141,2108.2,2106.7,1.5914676]
[1773423924811,2.68649942,2108.0,2106.7,1.5914676]
[1773423925008,0.03561493,2107.9,2106.7,1.5914676]
[1773423925414,0.03561493,2107.9,2106.7,4.26419738]
[1773423925919,1.22156358,2108.1,2106.9,2.72019738]
[1773423926100,1.18586501,2108.2,2107.1,13.61579738]
[1773423926300,0.03561493,2108.1,2107.2,30.0]
[1773423926614,1.22143294,2108.3,2107.3,2.72019738]
[1773423926804,1.22143294,2108.3,2107.4,1.546]
[1773423927000,1.22143294,2108.3,2107.5,1.547]
[1773423928135,1.22143294,2108.3,2107.6,1.18618333]
[1773423928335,1.22143294,2108.3,2107.5,0.0022]
[1773423928535,1.22143294,2108.3,2107.6,1.548]
[1773423929412,1.22143294,2108.3,2107.3,2.72019738]
[1773423929616,1.22143294,2108.3,2107.4,1.549]
[1773423931116,2.68649942,2108.2,2107.0,1.18647838]
[1773423931316,2.68649942,2108.2,2106.9,7.46650524]
[1773423931317,2.72211435,2108.1,2106.5,3.90806798]
[1773423931617,2.68649942,2107.7,2106.5,0.0011]
[1773423931825,2.68649942,2107.5,2106.5,0.0011]
[1773423932137,2.72211435,2107.4,2106.5,0.0011]
[1773423932710,3.87285162,2107.3,2106.5,0.0011]
[1773423932911,1.9388634,2106.8,2105.3,1.18747921]
[1773423933107,1.9388634,2106.8,2104.5,0.0011]
[1773423933108,2.68649942,2106.1,2104.9,1.551]
[1773423934348,2.68649942,2106.1,2104.9,2.73870115]
[1773423934549,2.68649942,2106.1,2105.0,1.552]
[1773423934837,1.18708452,2106.0,2105.0,2.73963816]
[1773423935325,1.18708452,2106.0,2105.0,1.552]
[1773423935534,1.18708452,2106.0,2105.0,2.7396484]
[1773423935834,1.18708452,2106.0,2105.1,0.04750368]
[1773423936448,1.18708452,2106.0,2105.0,2.7396484]
[1773423936610,7.43403547,2106.4,2105.0,5.45984578]
[1773423937033,2.68649942,2106.3,2105.0,5.45984578]
[1773423937235,2.68649942,2106.3,2105.0,1.1876484]
[1773423937439,2.68649942,2106.3,2105.1,1.60050368]
[1773423937610,2.68649942,2106.3,2105.1,1.553]
[1773423938323,4.74753605,2106.4,2105.1,4.27319738]
[1773423938721,4.74753605,2106.4,2105.3,0.0022]
[1773423938930,4.74753605,2106.4,2105.3,1.18967921]
[1773423939111,2.68649942,2106.3,2105.4,1.5562]
[1773423939312,2.68649942,2106.3,2105.2,1.18749521]
[1773423939534,2.68649942,2106.3,2105.3,1.554]
[1773423939737,2.68649942,2106.3,2105.3,1.5562]
[1773423940250,2.68649942,2106.3,2105.3,1.554]
[1773423940566,2.68649942,2106.3,2105.4,1.554]
[1773423941040,3.87347121,2106.2,2105.5,1.554]
[1773423942422,3.87347121,2106.2,2104.7,0.0011]
[1773423942423,2.68649942,2105.6,2104.7,0.0011]
[1773423942615,2.68649942,2105.2,2104.3,0.0011]
[1773423942830,2.68649942,2105.0,2104.3,0.0011]
[1773423945019,1.18770487,2104.9,2104.3,0.0011]
[1773423945214,1.18770487,2104.9,2104.5,0.0055]
[1773423945431,1.18770487,2104.9,2104.5,0.0011]
[1773423945626,1.18770487,2104.9,2104.6,0.0044]
[1773423946221,1.18770487,2104.9,2104.7,0.0044]
[1773423946543,1.18770487,2104.9,2104.0,0.0011]
[1773423946544,2.87948561,2104.8,2104.0,0.0011]
[1773423947217,2.87948561,2104.6,2104.0,0.0011]
[1773423949217,1.18793062,2104.5,2104.0,0.0011]
[1773423949648,1.18791883,2104.6,2104.0,0.0011]
[1773423950930,3.85847312,2104.6,2104.0,0.0011]
[1773423951524,1.18791883,2104.6,2104.0,0.0011]
[1773423952032,0.03561493,2104.7,2104.0,0.0011]
[1773423952227,1.22334733,2104.9,2104.0,0.0011]
[1773423952454,0.03561493,2104.8,2104.0,0.0011]
[1773423952819,0.03561493,2104.8,2104.0,2.62322495]
[1773423953021,0.03561493,2104.9,2104.0,2.62322495]
[1773423953243,0.03561493,2104.9,2104.1,1.18815645]
[1773423953549,0.03561493,2105.1,2104.1,3.8102814]
[1773423953727,0.03561493,2105.1,2104.1,1.18815645]
[1773423954056,0.03561493,2105.1,2104.2,2.62322495]
[1773423954440,0.03561493,2105.2,2104.2,2.62322495]
[1773423954640,1.8523424,2104.6,2103.7,0.0011]
[1773423954843,3.02496635,2104.5,2103.7,0.0011]
[1773423955364,2.67055429,2104.3,2103.7,0.0011]
[1773423955524,2.70616922,2104.3,2103.7,0.0011]
[1773423957356,1.18809999,2104.2,2103.7,0.0011]
[1773423957549,0.03561493,2104.1,2103.7,0.0011]
[1773423959464,1.22378453,2104.1,2103.7,0.0011]
[1773423960360,0.03561493,2104.1,2103.7,0.0011]
[1773423960538,1.2238086,2104.1,2103.7,0.0011]
[1773423960857,0.03561493,2104.1,2103.7,0.0011]
[1773423961274,2.67055429,2103.9,2102.6,1.25157642]
[1773423961469,2.67055429,2103.3,2102.6,0.0625947]
[1773423961881,0.33804713,2103.2,2102.6,0.0625947]
[1773423962249,3.00860142,2103.2,2102.6,0.0625947]
[1773423962464,0.33804713,2103.1,2102.6,0.0625947]
[1773423962744,2.67055429,2103.0,2102.6,0.00337428]
[1773423962941,0.0625947,2102.3,2101.7,1.18951325]
[1773423963166,2.67055429,2103.1,2101.8,0.03574907]
[1773423963367,2.67055429,2102.8,2101.6,1.18956985]
[1773423963580,2.67055429,2102.5,2101.1,4.75918522]
[1773423963954,2.67055429,2102.5,2101.2,0.04759185]
[1773423964159,2.67055429,2102.5,2101.3,1.543]
[1773423964774,2.67055429,2102.5,2101.2,0.04759185]
[1773423964948,2.67055429,2102.5,2101.4,1.543]
[1773423965153,0.065536,2102.8,2101.4,4.16512495]
[1773423965355,2.73609029,2102.6,2101.1,1.18985293]
[1773423965656,2.67055429,2102.6,2101.1,1.18985293]
[1773423965848,2.67055429,2102.6,2101.2,2.6697168]
[1773423966173,2.67055429,2102.6,2101.4,2.62212495]
[1773423966476,1.18894754,2102.7,2101.4,2.62212495]
[1773423966664,1.18894754,2102.7,2101.6,2.62212495]
[1773423966973,4.75444771,2103.3,2101.9,2.62212495]
[1773423966974,1.18860837,2103.3,2101.9,2.62212495]
[1773423967175,0.03561493,2103.2,2102.1,2.62212495]
[1773423967479,0.03561493,2103.3,2102.4,3.81124214]
[1773423968051,0.03561493,2103.3,2102.5,2.62212495]
[1773423968556,0.03561493,2103.3,2102.5,2.66968737]
[1773423968868,1.2242393,2103.3,2102.5,2.62212495]
[1773423969066,0.03561493,2103.3,2102.5,2.62212495]
[1773423969467,1.22422481,2103.3,2102.6,1.18900409]
[1773423969665,1.22422481,2103.3,2102.2,1.18923033]
[1773423970295,1.22422933,2103.3,2102.3,2.6696919]
[1773423970505,0.3138967,2103.4,2102.4,12.330004]
[1773423970794,0.3138967,2103.4,2102.6,2.62212495]
[1773423970960,1.50245158,2103.4,2102.6,2.62212495]
[1773423971155,0.3138967,2103.4,2102.6,2.62212495]
[1773423971390,1.18831215,2103.9,2102.8,12.05598595]
[1773423971696,4.75272764,2104.1,2102.8,12.05598595]
[1773423971697,0.23446291,2104.2,2103.0,2.62212495]
[1773423971860,1.18904352,2104.3,2103.0,2.62212495]
[1773423973158,7.4227284,2104.7,2103.0,2.62212495]
[1773423973159,2.91056638,2104.7,2103.0,2.62212495]
[1773423973363,4.75165937,2104.6,2103.2,2.62212495]
[1773423973591,4.75165937,2104.6,2103.3,1.18860837]
[1773423973992,4.75165937,2104.6,2103.3,3.81073332]
[1773423974591,2.67055429,2104.5,2103.1,1.542]
[1773423974895,2.67055429,2104.5,2103.1,2.73071293]
[1773423975074,2.67055429,2104.5,2103.2,2.62212495]
[1773423975275,2.67055429,2104.5,2103.1,1.542]
[1773423975479,2.67055429,2104.5,2102.1,0.09192492]
[1773423975480,2.67055429,2103.0,2102.1,0.09192492]
[1773423975973,2.67055429,2103.0,2101.5,1.18958554]
[1773423976365,2.67055429,2103.0,2101.4,4.75858721]
[1773423976366,2.67055429,2103.0,2101.3,1.19078812]
[1773423976879,9.718628,2102.9,2101.3,1.19078812]
[1773423977084,2.67055429,2102.8,2101.3,1.19078812]
[1773423977899,2.67055429,2102.6,2101.3,1.19078812]
[1773423978567,2.67055429,2102.4,2101.3,0.0011]
[1773423980003,2.67055429,2102.2,2101.3,0.0011]
[1773423980188,2.67055429,2102.2,2101.0,4.79389122]
[1773423980500,2.67055429,2102.2,2101.1,1.18985293]
[1773423981294,2.67055429,2102.2,2101.0,0.0342964]
[1773423981496,2.50508263,2101.2,2099.5,4.76300224]
[1773423981709,2.50508263,2101.2,2100.1,4.76167696]
[1773423981864,4.75826331,2101.7,2100.4,18.123157]
[1773423982072,4.75826331,2101.7,2100.4,13.28829957]
[1773423982272,1.18940006,2101.9,2100.5,2.75049128]
[1773423982475,1.18940006,2101.9,2100.5,2.70288357]
[1773423982670,3.69448269,2101.9,2100.5,2.75049128]
[1773423982876,2.50508263,2101.8,2100.1,7.32916517]
[1773423983397,2.50508263,2101.8,2100.1,7.37678195]
[1773423983697,2.50508263,2101.8,2100.1,1.1904195]
[1773423983907,2.50508263,2101.4,2100.1,1.23803628]
[1773423984069,1.18962645,2101.5,2100.2,12.37637957]
[1773423984266,3.69436953,2102.1,2100.5,2.70288357]
[1773423984479,2.50508263,2102.0,2100.5,2.70288357]
[1773423984675,2.50508263,2102.0,2100.1,3.75790771]
[1773423984676,1.1892869,2102.1,2100.7,2.70288357]
[1773423984966,1.76375127,2102.2,2101.1,2.70288357]
[1773423985296,1.76375127,2102.2,2101.3,2.70288357]
[1773423985496,2.95299594,2102.2,2101.4,0.02]
[1773423985800,2.95299594,2102.2,2101.3,2.70288357]
[1773423985962,2.95299594,2102.2,2101.4,0.02]
[1773423986164,2.95299594,2102.2,2101.3,1.18973784]
[1773423986569,2.95299594,2102.2,2101.3,3.89262141]
[1773423986570,2.95299847,2102.2,2101.3,3.89262141]
[1773423986867,1.76375127,2102.2,2101.3,3.89262141]
[1773423987072,2.9530023,2102.2,2101.4,2.75047089]
[1773423987273,2.9530023,2102.2,2101.4,2.70288357]
[1773423987274,1.18925103,2102.2,2101.4,2.70288357]
[1773423987473,1.18925103,2102.2,2101.4,0.02]
[1773423987673,1.18925103,2102.2,2101.0,2.70288357]
[1773423988002,3.69433366,2102.2,2100.9,1.1899662]
[1773423988208,2.50508263,2102.1,2100.8,2.72801508]
[1773423988977,2.50508263,2102.1,2100.4,4.76083565]
[1773423989497,2.50508263,2101.7,2100.3,2.72826845]
[1773423989871,2.50508263,2101.7,2100.3,2.74826845]
[1773423990072,3.69465248,2101.6,2100.3,2.72826845]
[1773423991698,3.69465248,2101.6,2100.3,2.74826845]